[Event "Austrian Bundesliga 2023-24"]
[Site "Austria"]
[Date "2024.03.22"]
[Round "9.14"]
[White "Koelle, Tobias"]
[Black "Erdos, Viktor"]
[Result "1/2-1/2"]
[ECO "D37"]
[WhiteElo "2460"]
[BlackElo "2552"]
[Annotator "TA"]
[PlyCount "68"]
[EventDate "2023.10.21"]
[EventType "team-tourn"]
[EventCountry "AUT"]
[SourceTitle "playchess.com"]
[Source "ChessBase"]
[SourceQuality "1"]
[TimeControl "40/5400+30:1800+30"]

{[%evp 14,68,18,18,25,15,26,31,22,22,38,12,12,19,13,16,21,16,26,0,0,0,0,0,0,0,0,0,0,0,0,0,0,0,17,0,8,0,0,0,0,0,0,0,13,0,0,0,0,0,0,0,0,0,0,0,0]} 1. d4 {[%emt 0:00:04]} Nf6 {[%emt 0:00:10]} 2. c4 {[%emt 0:00:08]} e6 {[%emt 0:00:04]} 3. Nf3 {[%emt 0:00:04]} d5 {[%emt 0:00:06]} 4. Nc3 {[%emt 0:00:04]} Nbd7 {[%emt 0:00:06]} 5. Bf4 {[%emt 0:00:08]} dxc4 {[%emt 0:00:07]} 6. e3 {[%emt 0:00:16]} Bd6 {[%emt 0:00:06]} 7. Bxd6 {[%emt 0:00:12]} cxd6 {[%emt 0:00:05]} 8. Bxc4 {[%emt 0:00:08]} Nb6 {[%emt 0:00:07]} 9. Bd3 {[%emt 0:00:15]} Nbd5 {[%emt 0:00:16]} 10. Nxd5 {[%emt 0:00:15]} Nxd5 {[%emt 0:00:05] White is slightly better.} 11. O-O {[%emt 0:00:08]} O-O {[%emt 0:01:06]} 12. Re1 {[%emt 0:00:35]} Bd7 {[%emt 0:01:38]} 13. e4 {[%emt 0:04:28]} Nf4 {[%emt 0:11:02]} 14. Bf1 {[%emt 0:01:09]} Rc8 {[%emt 0:04:31]} 15. Qd2 {[%emt 0:10:41]} Ng6 {[%emt 0:00:50]} 16. Rac1 {[%emt 0:04:19]} Qb6 {[%emt 0:01:43] The position is equal.} 17. a3 {[%emt 0:08:30]} h6 {[%emt 0:05:24]} 18. h3 {[%emt 0:05:13]} Rxc1 {[%emt 0:06:52]} 19. Rxc1 {[%emt 0:00:10]} Rc8 {[%emt 0:00:07]} 20. Rxc8+ {[%emt 0:00:51]} Bxc8 {[%emt 0:00:04]} 21. Qc3 {[%emt 0:03:56]} Bd7 {[%emt 0:01:25]} 22. g3 {[%emt 0:11:23]} Ne7 {[%emt 0:07:19]} 23. h4 {[%emt 0:14:01]} Qc6 {[%emt 0:19:28]} 24. Qxc6 {[%emt 0:00:48]} Nxc6 $11 {[%emt 0:00:22][%mdl 4096] Endgame. KBN-KBN} 25. Bb5 {[%emt 0:07:41]} Kf8 {[%emt 0:00:29]} 26. Kf1 {[%emt 0:02:08]} Ne5 {[%emt 0:06:48]} 27. Be2 {[%emt 0:00:22]} Nxf3 {[%emt 0:04:00]} 28. Bxf3 {[%emt 0:00:06] KB-KB} Bb5+ {[%emt 0:01:21]} 29. Ke1 {[%emt 0:01:09]} e5 {[%emt 0:00:38]} 30. Kd2 {[%emt 0:05:34]} exd4 {[%emt 0:05:45]} 31. Be2 {[%emt 0:00:10]} Bc6 {[%emt 0:00:03]} 32. Kd3 {[%emt 0:00:03]} Bb5+ {[%emt 0:00:04]} 33. Kd2 {[%emt 0:00:03]} Bc6 {[%emt 0:00:04]} 34. Kd3 {[%emt 0:00:04]} Bb5+ {An uneventful encounter.   Weighted Error Value: White=0.04 (flawless) /Black=0.01 (flawless) .  Inaccurate:     	White=2     	---        OK:         	White=11    	Black=21     Best:        	White=1     	---} 1/2-1/2

[Event "Austrian Bundesliga 2023-24"]
[Site "Austria"]
[Date "2024.03.22"]
[Round "9.15"]
[White "Ivanisevic, Ivan"]
[Black "Deuer, Marius"]
[Result "1/2-1/2"]
[ECO "E22"]
[WhiteElo "2523"]
[BlackElo "2430"]
[Annotator "TA"]
[PlyCount "60"]
[EventDate "2023.10.21"]
[EventType "team-tourn"]
[EventCountry "AUT"]
[SourceTitle "playchess.com"]
[Source "ChessBase"]
[SourceQuality "1"]
[TimeControl "40/5400+30:1800+30"]

{[%evp 12,60,10,0,0,2,0,4,6,0,21,18,66,25,36,25,28,21,22,20,18,15,24,19,14,25,14,13,20,30,18,0,0,0,0,0,3,2,3,0,0,0,0,0,5,0,0,0,0,0,0]} 1. d4 {[%emt 0:00:05]} Nf6 {[%emt 0:00:06]} 2. c4 {[%emt 0:00:04]} e6 {[%emt 0:00:05]} 3. Nc3 {[%emt 0:00:05]} Bb4 {[%emt 0:00:05]} 4. Qb3 {[%emt 0:00:22]} c5 {[%emt 0:06:12]} 5. Nf3 {[%emt 0:00:07]} b6 {[%emt 0:11:24]} 6. Bg5 {[%emt 0:07:17]} Bb7 {[%emt 0:05:53]} 7. e3 {[%emt 0:05:22]} h6 {[%emt 0:03:27]} 8. Bh4 {[%emt 0:00:07]} O-O {[%emt 0:02:06]} 9. a3 {[%emt 0:04:05]} Bxc3+ {[%emt 0:00:40]} 10. Qxc3 {[%emt 0:00:07]} cxd4 {[%emt 0:06:13]} 11. Nxd4 {[%emt 0:11:38][%cal Bf3d4,Bd4b5,Bb5c3][%mdl 32]} Na6 {[%emt 0:12:28]} (11... Nc6 $11) 12. f3 {[%emt 0:11:25]} d5 $1 {[%emt 0:07:04]} 13. cxd5 {[%emt 0:12:26]} (13. b4 $5) 13... Qxd5 {[%emt 0:03:10]} 14. Bc4 {[%emt 0:02:24]} Qe5 {[%emt 0:01:56]} 15. Nb5 {[%emt 0:03:29]} Qxc3+ {[%emt 0:03:52]} 16. Nxc3 {[%emt 0:00:06]} Rac8 {[%emt 0:01:55]} 17. Bxa6 {[%emt 0:01:27]} Bxa6 {[%emt 0:00:07]} 18. Bxf6 {[%emt 0:00:06]} gxf6 {[%emt 0:00:05]} 19. O-O-O {[%emt 0:00:50]} Rfd8 {[%emt 0:02:44] Wards off Rd7} 20. Rxd8+ {[%emt 0:01:31]} Rxd8 {[%emt 0:00:05]} 21. Rd1 {[%emt 0:00:10] The position is equal.} Rxd1+ {[%emt 0:02:36]} 22. Kxd1 $11 {[%emt 0:00:07][%mdl 4096] Endgame. KB-KN} f5 {[%emt 0:00:45]} 23. Kd2 {[%emt 0:03:58]} Kf8 {[%emt 0:02:27]} 24. b4 {[%emt 0:17:24]} Bc4 {[%emt 0:03:33]} 25. Ke1 {[%emt 0:09:22]} Ke7 {[%emt 0:03:18]} 26. Kf2 {[%emt 0:00:05]} Kf6 {[%emt 0:01:02]} 27. f4 {[%emt 0:00:15]} Ke7 {[%emt 0:04:47]} 28. h3 {[%emt 0:00:34]} Kf6 {[%emt 0:01:37]} 29. g4 {[%emt 0:02:46]} Kg6 {[%emt 0:04:01]} 30. Kg3 {[%emt 0:00:15]} fxg4 {[%emt 0:01:25] Weighted Error Value: White=0.05 (flawless) /Black=0.04 (flawless) .  Mistake:       	---       	Black=1      Inaccurate:     	White=1     	---        OK:         	White=6     	Black=11     Strong:       	---       	Black=1} 1/2-1/2

[Event "Austrian Bundesliga 2023-24"]
[Site "Austria"]
[Date "2024.03.22"]
[Round "9.16"]
[White "Kvetny, Mark"]
[Black "Perunovic, Milos"]
[Result "1/2-1/2"]
[ECO "E49"]
[WhiteElo "2407"]
[BlackElo "2535"]
[Annotator "TA"]
[PlyCount "61"]
[EventDate "2023.10.21"]
[EventType "team-tourn"]
[EventCountry "AUT"]
[SourceTitle "playchess.com"]
[Source "ChessBase"]
[SourceQuality "1"]
[TimeControl "40/5400+30:1800+30"]

{[%evp 23,61,0,10,0,18,18,46,26,60,21,30,33,29,0,0,-63,-55,-114,-29,-30,-37,-31,-35,-36,-8,-4,0,-31,0,0,0,-18,0,0,0,-5,0,0,0,0]} 1. d4 {[%emt 0:00:04]} Nf6 {[%emt 0:01:00]} 2. c4 {[%emt 0:00:10]} e6 {[%emt 0:00:20]} 3. Nc3 {[%emt 0:00:09]} Bb4 {[%emt 0:00:19]} 4. e3 {[%emt 0:00:08]} O-O {[%emt 0:01:10]} 5. Bd3 {[%emt 0:00:09]} d5 {[%emt 0:01:00]} 6. a3 {[%emt 0:00:36]} Bxc3+ {[%emt 0:01:22]} 7. bxc3 {[%emt 0:00:05]} dxc4 {[%emt 0:01:44]} 8. Bxc4 {[%emt 0:00:04]} c5 {[%emt 0:00:29]} 9. Ne2 {[%emt 0:00:16]} Qc7 {[%emt 0:06:31]} 10. Ba2 {[%emt 0:00:46]} b6 {[%emt 0:00:14]} 11. O-O {[%emt 0:01:36]} Ba6 {[%emt 0:26:40]} 12. Bb2 {[%emt 0:01:11]} Nbd7 {[%emt 0:07:17]} 13. Rc1 {[%emt 0:04:12]} Rad8 {[%emt 0:12:48]} (13... Ng4 $5 14. Nf4 Bxf1 15. Qxg4 Bb5 $14) 14. Re1 {[%emt 0:10:54]} Bb7 {[%emt 0:09:28][%cal Od7e5]} 15. Ng3 {[%emt 0:04:50] White is slightly better.} Ne4 {[%emt 0:07:16]} 16. Bb1 {[%emt 0:20:44]} Ndf6 {[%emt 0:04:13]} 17. Nf1 {[%emt 0:06:07]} Nd6 {[%emt 0:03:00]} 18. c4 {[%emt 0:11:48][%cal Od4d5]} cxd4 $1 {[%emt 0:05:56]} 19. exd4 {[%emt 0:02:50]} ({White should play} 19. Qe2 $11) 19... Nxc4 $15 {[%emt 0:01:47]} 20. d5 {[%emt 0:01:40] Inhibits Qc6.} Nxb2 {[%emt 0:02:52] A dynamic duo of knights.} (20... Bxd5 $2 {is the wrong capture.} 21. Bxf6 Qf4 (21... gxf6 $2 {too greedy.} 22. Qg4+ Kh8 23. Qh4 $18) 22. Bxd8 Rxd8 23. g3 $18) (20... Nxd5 $2 21. Qd4 f5 22. Rxc4 $18) ({Better is} 20... Rxd5 $17 21. Qe2 Rc8 22. Bxf6 gxf6) 21. Rxc7 $11 {[%emt 0:00:15]} Nxd1 {[%emt 0:00:06]} 22. dxe6 {[%emt 0:00:22] [#]} fxe6 {[%emt 0:02:06]} 23. Rxb7 {[%emt 0:00:07]} Nc3 {[%emt 0:02:23] Wards off Ba2} (23... Rf7 $5 24. Rxf7 Kxf7 $16) 24. Rxa7 {[%emt 0:02:32]} Ra8 {[%emt 0:00:21]} 25. Rb7 {[%emt 0:06:27]} Nxb1 {[%emt 0:01:27]} 26. Rxb1 {[%emt 0:00:06] The position is equal.} Nd5 {[%emt 0:00:06]} 27. Ra1 {[%emt 0:02:53]} Ra4 {[%emt 0:01:00]} 28. Ne3 {[%emt 0:00:30]} Rf7 {[%emt 0:00:45]} 29. Rb8+ {[%emt 0:00:36]} Rf8 {[%emt 0:00:05]} 30. Rb7 {[%emt 0:00:25]} Rf7 {[%emt 0:00:11]} 31. Rb8+ {[%emt 0:00:05] Weighted Error Value: White=0.21 (precise) /Black=0.19 (very precise) .  Mistake:       	White=2     	Black=1      Inaccurate:     	White=3     	Black=4      OK:         	White=8     	Black=5      Best:        	White=2     	Black=1      Strong:       	---       	Black=1} 1/2-1/2

[Event "Austrian Bundesliga 2023-24"]
[Site "Austria"]
[Date "2024.03.22"]
[Round "9.17"]
[White "Ftacnik, Lubomir"]
[Black "Richter, Nils"]
[Result "1/2-1/2"]
[ECO "A17"]
[WhiteElo "2453"]
[BlackElo "2400"]
[Annotator "TA"]
[PlyCount "60"]
[EventDate "2023.10.21"]
[EventType "team-tourn"]
[EventCountry "AUT"]
[SourceTitle "playchess.com"]
[Source "ChessBase"]
[SourceQuality "1"]
[TimeControl "40/5400+30:1800+30"]

{[%evp 13,60,13,11,-4,0,0,0,0,-11,-19,-15,-26,-12,-30,-16,-30,-16,-12,-20,-8,-18,-8,0,-7,0,-6,8,14,24,18,21,11,14,8,22,11,15,14,14,10,13,4,13,11,30,8,10,7,32]} 1. Nf3 {[%emt 0:00:04]} Nf6 {[%emt 0:00:08]} 2. c4 {[%emt 0:00:08]} e6 {[%emt 0:00:08]} 3. Nc3 {[%emt 0:01:12]} Bb4 {[%emt 0:00:09]} 4. g3 {[%emt 0:00:42]} O-O {[%emt 0:00:47]} 5. Bg2 {[%emt 0:00:14]} d5 {[%emt 0:00:27]} 6. a3 {[%emt 0:00:34]} Be7 {[%emt 0:00:49]} 7. d4 {[%emt 0:02:15]} dxc4 {[%emt 0:03:57]} 8. Qa4 {[%emt 0:05:53]} a6 {[%emt 0:05:57] Black wants to play ...b5.} 9. Qxc4 {[%emt 0:01:23]} b5 {[%emt 0:00:25]} 10. Qd3 {[%emt 0:05:27]} Bb7 {[%emt 0:02:43]} 11. O-O {[%emt 0:00:35]} c5 {[%emt 0:01:06]} 12. Rd1 {[%emt 0:02:58]} Nbd7 {[%emt 0:05:03][%cal Bb8d7,Bd7c5,Bc5e4,Be4d6,Bd6f5,Bf5e7,Be7d5,Bd5b4][%mdl 32]} 13. Be3 {[%emt 0:17:30]} Qc7 {[%emt 0:07:29]} 14. Rac1 {[%emt 0:06:01]} Rac8 {[%emt 0:00:26]} 15. dxc5 {[%emt 0:10:28]} Nxc5 {[%emt 0:00:44]} 16. Qb1 {[%emt 0:02:58]} Qb8 {[%emt 0:04:09]} 17. b4 {[%emt 0:02:09]} Nce4 {[%emt 0:05:50]} (17... Ncd7 {is interesting.} 18. Ng5 Bxg2 19. Kxg2 Ne5) 18. Bd4 {[%emt 0:06:20]} Qa8 {[%emt 0:08:47][%cal Oe6e5]} 19. Qa1 {[%emt 0:07:04]} Nd6 {[%emt 0:05:41]} 20. Bc5 {[%emt 0:06:02]} Nf5 {[%emt 0:00:35]} 21. Bxe7 {[%emt 0:03:01]} Nxe7 {[%emt 0:02:38]} 22. a4 {[%emt 0:02:58]} Ned5 {[%emt 0:13:12]} 23. axb5 {[%emt 0:03:03]} axb5 {[%emt 0:05:04]} 24. Nxb5 {[%emt 0:02:54] Threatening Qxa8.} Rxc1 {[%emt 0:06:53]} 25. Rxc1 {[%emt 0:00:26]} Nxb4 {[%emt 0:00:59]} 26. Nd6 {[%emt 0:03:16]} Bxf3 {[%emt 0:08:15]} 27. Bxf3 {[%emt 0:00:08]} Qxa1 {[%emt 0:00:10]} 28. Rxa1 {[%emt 0:00:09]} Nbd5 {[%emt 0:00:34]} 29. Bxd5 {[%emt 0:00:24]} Nxd5 {[%emt 0:00:35]} 30. Ra7 {[%emt 0:01:15]} Nf6 {[%emt 0:01:23] A rather calm draw.   Weighted Error Value: White=0.06 (flawless) /Black=0.03 (flawless) .  OK:         	White=7     	Black=9      Best:        	---       	Black=2} 1/2-1/2

[Event "Austrian Bundesliga 2023-24"]
[Site "Austria"]
[Date "2024.03.22"]
[Round "9.18"]
[White "Neyman, Igor"]
[Black "Sipos, Istvan"]
[Result "1/2-1/2"]
[ECO "D38"]
[WhiteElo "2302"]
[BlackElo "2457"]
[Annotator "TA"]
[PlyCount "45"]
[EventDate "2023.10.21"]
[EventType "team-tourn"]
[EventCountry "AUT"]
[SourceTitle "playchess.com"]
[Source "ChessBase"]
[SourceQuality "1"]
[TimeControl "40/5400+30:1800+30"]

{[%evp 13,45,12,18,0,14,18,30,20,14,16,40,22,29,0,0,0,0,0,0,0,0,0,0,-12,0,-13,0,-7,0,-14,0,-7,0,0]} 1. d4 {[%emt 0:00:03]} Nf6 {[%emt 0:00:05]} 2. c4 {[%emt 0:00:20]} e6 {[%emt 0:00:06]} 3. Nf3 {[%emt 0:00:33]} d5 {[%emt 0:00:15]} 4. Nc3 {[%emt 0:00:41]} Bb4 {[%emt 0:00:21]} 5. cxd5 {[%emt 0:02:09]} exd5 {[%emt 0:01:44]} 6. Bg5 {[%emt 0:01:09]} Qd6 {[%emt 0:01:43]} 7. Bxf6 {[%emt 0:03:55]} Qxf6 {[%emt 0:00:08]} 8. Qb3 {[%emt 0:01:56]} c5 {[%emt 0:01:15]} 9. dxc5 {[%emt 0:07:43]} Bxc3+ {[%emt 0:08:41]} 10. Qxc3 {[%emt 0:01:45] White has an edge.} Qxc3+ {[%emt 0:00:30]} 11. bxc3 {[%emt 0:00:09]} O-O {[%emt 0:11:00]} 12. e3 {[%emt 0:03:24]} Nd7 {[%emt 0:04:25][%cal Bb8d7,Bd7c5,Bc5a4][%mdl 32]} 13. Nd4 {[%emt 0:04:03]} Nxc5 {[%emt 0:00:06] The position is equal.} 14. f3 {[%emt 0:00:40]} Bd7 {[%emt 0:02:55]} 15. Kd2 {[%emt 0:02:42]} Rac8 {[%emt 0:04:13]} 16. Be2 {[%emt 0:06:40]} Rc7 {[%emt 0:09:40]} 17. Rhc1 {[%emt 0:03:07]} Rfc8 {[%emt 0:00:58]} 18. Rab1 {[%emt 0:05:37]} Na4 {[%emt 0:05:54]} 19. Rb3 {[%emt 0:01:26]} Nc5 {[%emt 0:00:06]} 20. Rbb1 {[%emt 0:01:12]} Na4 {[%emt 0:01:37]} 21. Rb3 {[%emt 0:01:01]} Nc5 {[%emt 0:00:06]} 22. Rbb1 {[%emt 0:00:40]} Na4 {[%emt 0:00:16]} 23. Rb3 {Not much happened in this game.   Weighted Error Value: White=0.07 (flawless) /Black=0.07 (flawless) .  Inaccurate:     	White=1     	---        OK:         	White=5     	Black=5} 1/2-1/2

[Event "Austrian Bundesliga 2023-24"]
[Site "Austria"]
[Date "2024.03.22"]
[Round "9.19"]
[White "Michalik, Peter"]
[Black "Janzelj, Tim"]
[Result "1-0"]
[ECO "B42"]
[WhiteElo "2562"]
[BlackElo "2403"]
[Annotator "TA"]
[PlyCount "51"]
[EventDate "2023.10.21"]
[EventType "team-tourn"]
[EventCountry "AUT"]
[SourceTitle "playchess.com"]
[Source "ChessBase"]
[SourceQuality "1"]
[TimeControl "40/5400+30:1800+30"]

{[%evp 12,51,35,32,40,41,37,9,33,10,30,30,43,22,39,39,43,31,41,37,36,41,60,57,229,233,406,262,355,388,377,370,727,703,809,852,919,910,898,903,977,955]} 1. e4 {[%emt 0:00:04]} c5 {[%emt 0:00:14]} 2. Nf3 {[%emt 0:00:06]} e6 {[%emt 0:00:16]} 3. d4 {[%emt 0:00:12]} cxd4 {[%emt 0:00:05]} 4. Nxd4 {[%emt 0:00:04]} a6 {[%emt 0:00:08]} 5. Bd3 {[%emt 0:00:31]} Bc5 {[%emt 0:00:14]} 6. Nb3 {[%emt 0:00:07]} Ba7 {[%emt 0:00:47]} 7. Qe2 {[%emt 0:00:18]} Ne7 {[%emt 0:00:15]} 8. Be3 {[%emt 0:00:28]} O-O {[%emt 0:00:18]} 9. N1d2 {[%emt 0:01:44]} Nbc6 {[%emt 0:00:55] The position is equal.} 10. c3 {[%emt 0:02:41]} d5 {[%emt 0:09:04]} 11. Bxa7 {[%emt 0:00:32]} Rxa7 {[%emt 0:00:08]} 12. e5 {[%emt 0:01:42]} Ng6 {[%emt 0:01:30]} 13. Bxg6 {[%emt 0:00:17]} fxg6 {[%emt 0:00:09]} 14. O-O {[%emt 0:04:55]} b6 {[%emt 0:00:46]} 15. Nf3 {[%emt 0:05:53][%cal Bd2f3,Bf3g5,Bg5e6][%mdl 32]} a5 {[%emt 0:04:43]} 16. Qe3 {[%emt 0:01:05]} Ba6 {[%emt 0:00:24]} 17. Rfe1 {[%emt 0:02:00]} Raf7 $2 {[%emt 0:01:35] [#] Black cannot hold the game after this.} ({Better is} 17... Ne7 $14) 18. Ng5 $1 $18 {[%emt 0:02:40][%cal Og5e6]} d4 $2 {[%emt 0:01:29]} (18... Bc8 19. Nxf7 Rxf7) 19. Qg3 {[%emt 0:01:10][%cal Og5e6]} (19. cxd4 Rxf2 20. d5 (20. Nxe6 $2 {loses.} Qd5 $19) 20... Nb4 $19 (20... Qxd5 21. Qh3 $17) (20... exd5 $2 21. Ne6 $18)) 19... Rxf2 {[%emt 0:14:22] Threatens to win with ...Qe7.} 20. Nxe6 {[%emt 0:00:26]} Qd5 {[%emt 0:00:43]} 21. Nxf8 {[%emt 0:00:35] Excellent horsemanship.} Rxb2 {[%emt 0:00:09] [#]} (21... Rxf8 22. Nxd4 Nxd4 23. cxd4 Qxd4+ 24. Kh1 Qxb2) 22. c4 $1 {[%emt 0:09:21] White is clearly winning.} Bxc4 {[%emt 0:02:24] [#]} (22... Qd8 23. Ne6) 23. e6 $1 {[%emt 0:00:28]} Qd8 {[%emt 0:35:10] [#]} (23... Ne7 24. Nd7) 24. e7 $1 {[%emt 0:04:46]} Nxe7 {[%emt 0:01:06]} 25. Ne6 {[%emt 0:00:06]} Qa8 {[%emt 0:04:32]} 26. Nbxd4 {[%emt 0:00:26] Weighted Error Value: White=0.17 (very precise) /Black=0.65.  Loses game:     	---       	Black=1      Mistake:       	---       	Black=2      Inaccurate:     	White=2     	Black=1      OK:         	White=7     	Black=2      Best:        	White=1     	---        Strong:       	White=1     	---} 1-0

[Event "Austrian Bundesliga 2023-24"]
[Site "Austria"]
[Date "2024.03.22"]
[Round "9.20"]
[White "Pajeken, Jakob Leon"]
[Black "Vogel, Roven"]
[Result "1/2-1/2"]
[ECO "B90"]
[WhiteElo "2424"]
[BlackElo "2521"]
[Annotator "TA"]
[PlyCount "47"]
[EventDate "2023.10.21"]
[EventType "team-tourn"]
[EventCountry "AUT"]
[SourceTitle "playchess.com"]
[Source "ChessBase"]
[SourceQuality "1"]
[TimeControl "40/5400+30:1800+30"]

{[%evp 17,47,5,12,0,0,-17,-8,0,0,0,0,0,0,0,0,0,0,-12,0,0,0,0,0,0,0,0,0,0,0,0,0,0]} 1. e4 {[%emt 0:00:24]} c5 {[%emt 0:00:10]} 2. Nf3 {[%emt 0:00:05]} d6 {[%emt 0:00:09]} 3. d4 {[%emt 0:00:04]} cxd4 {[%emt 0:00:08]} 4. Nxd4 {[%emt 0:00:03]} Nf6 {[%emt 0:00:10]} 5. Nc3 {[%emt 0:00:04]} a6 {[%emt 0:00:09]} 6. Be3 {[%emt 0:00:10]} e5 {[%emt 0:00:11]} 7. Nf3 {[%emt 0:00:37]} Be7 {[%emt 0:00:13]} 8. Bc4 {[%emt 0:00:07]} O-O {[%emt 0:00:09]} 9. O-O {[%emt 0:00:16]} Nc6 {[%emt 0:00:08] Die Stellung ist ausgeglichen.} 10. Re1 {[%emt 0:00:09]} Be6 {[%emt 0:00:29]} 11. Nd5 {[%emt 0:00:23]} Bxd5 {[%emt 0:00:22]} 12. exd5 {[%emt 0:00:06]} b5 {[%emt 0:01:09]} 13. Bf1 {[%emt 0:00:12]} Nb4 {[%emt 0:00:00]} 14. c4 {[%emt 0:00:19]} bxc4 {[%emt 0:00:00]} 15. Bxc4 {[%emt 0:00:06]} Qc7 {[%emt 0:13:48]} 16. Rc1 {[%emt 0:00:07] [#] Und a3 würde nun gewinnen.} Qb7 {[%emt 0:00:15][%cal Rb4d5]} 17. Qb3 {[%emt 0:00:31] a3 ist eine echte Drohung.} Rab8 {[%emt 0:00:23][%cal Rb4d5]} 18. Red1 {[%emt 0:00:25]} Qd7 {[%emt 0:01:24]} 19. Qc3 {[%emt 0:00:29]} Qb7 $1 {[%emt 0:00:31]} 20. Qd2 {[%emt 0:00:08]} Ne4 $1 {[%emt 0:00:14]} 21. Qe2 {[%emt 0:00:10] [#] Droht stark a3.} Nf6 {[%emt 0:00:07]} 22. Qd2 {[%emt 0:00:08]} Ne4 $1 {[%emt 0:00:06]} 23. Qe2 {[%emt 0:00:07] a3 wäre nun fies.} Nf6 {[%emt 0:00:20]} 24. Qd2 {Ein ziemlich ruhiges Remis.   Gewichteter Fehlerwert: Weiß=0.02 (makellos) /Schwarz=0.01 (makellos) .  OK:         	Weiß=8     	Schwarz=6     Bester:       	Weiß=1     	Schwarz=4     Stark:        	---       	Schwarz=3} 1/2-1/2